bitfinex-derivatives/quotes_BNBF0:USTF0_20251027
["timestamp","ask_amount","ask_price","bid_price","bid_amount"]
[1761574486056,0.1517871,1148.5,1144.4,0.64880039]
[1761574486260,2.0962383,1148.0,1144.5,0.55717981]
[1761574486458,2.0962383,1148.0,1144.6,0.55717981]
[1761574486655,2.0962383,1148.0,1144.4,0.64880039]
[1761574486656,2.0962383,1148.1,1144.7,0.55717981]
[1761574486858,2.0962383,1148.1,1144.3,0.64880039]
[1761574487060,2.0962383,1148.1,1144.4,0.55746002]
[1761574487257,2.0962383,1148.0,1144.5,0.55746002]
[1761574487456,2.0962383,1148.0,1144.6,0.55746002]
[1761574487659,2.0962383,1148.0,1144.2,0.64880039]
[1761574487862,2.0962383,1148.0,1144.3,0.55777208]
[1761574488157,2.0962383,1148.0,1144.4,0.55777208]
[1761574488359,2.0962383,1148.0,1144.5,0.55777208]
[1761574488664,2.0962383,1148.0,1144.6,0.55777208]
[1761574488860,2.0962383,1148.0,1144.1,0.64880039]
[1761574489061,2.0962383,1148.0,1144.2,0.55805588]
[1761574489261,2.0962383,1148.0,1144.3,0.55805588]
[1761574489462,2.0962383,1148.0,1144.4,0.55805588]
[1761574489667,2.0962383,1148.0,1144.5,0.55805588]
[1761574489968,2.0962383,1147.9,1144.6,0.55805588]
[1761574490168,2.0962383,1147.9,1144.2,0.64880039]
[1761574490365,2.0962383,1147.7,1144.4,0.64880039]
[1761574490568,2.0962383,1147.7,1144.5,0.55836262]
[1761574491065,2.0962383,1147.6,1144.5,0.55836262]
[1761574492369,2.0962383,1147.7,1144.5,0.55836262]
[1761574492566,2.0962383,1147.7,1144.6,0.55836262]
[1761574492766,2.0962383,1147.7,1144.7,0.55836262]
[1761574492970,2.0962383,1148.4,1144.8,0.55836262]
[1761574493167,2.0962383,1148.4,1144.3,0.64880039]
[1761574493369,2.0962383,1148.4,1144.4,0.55892547]
[1761574493573,2.0962383,1148.4,1144.5,0.55892547]
[1761574493875,2.0962383,1148.4,1144.6,0.55892547]
[1761574494069,2.0962383,1148.4,1144.7,0.55892547]
[1761574494270,2.0962383,1148.4,1144.8,0.55892547]
[1761574494473,2.0962383,1148.4,1144.9,0.55892547]
[1761574494668,2.0962383,1148.4,1144.4,0.64880039]
[1761574494872,2.0962383,1148.4,1144.5,0.55915942]
[1761574495168,0.1517871,1148.5,1144.6,0.55915942]
[1761574495372,0.1517871,1148.5,1144.7,0.55915942]
[1761574495673,0.1517871,1148.5,1144.8,0.55915942]
[1761574495870,0.1517871,1148.5,1144.9,0.55915942]
[1761574496074,0.1517871,1148.5,1145.0,0.55915942]
[1761574496273,0.1517871,1148.5,1144.5,0.64880039]
[1761574496569,0.1517871,1148.5,1144.6,0.55944656]
[1761574496774,0.1517871,1148.5,1144.7,0.55944656]
[1761574496970,0.1517871,1148.5,1144.8,0.55944656]
[1761574497172,2.0962383,1148.3,1144.9,0.55944656]
[1761574497370,2.0962383,1148.3,1145.0,0.55944656]
[1761574497674,2.0962383,1148.4,1144.5,0.64880039]
[1761574497968,2.0962383,1148.4,1144.6,0.55947222]
[1761574498168,2.0962383,1148.4,1144.7,0.55947222]
[1761574498373,2.0962383,1148.4,1144.8,0.55947222]
[1761574498673,2.2480254,1148.5,1144.9,0.55947222]
[1761574498873,2.2480254,1148.5,1145.0,0.55947222]
[1761574499075,2.2480254,1148.5,1144.5,0.64880039]
[1761574499374,2.2480254,1148.5,1144.6,0.55950102]
[1761574499574,2.2480254,1148.5,1144.7,0.55950102]
[1761574499773,2.2480254,1148.5,1144.8,0.55950102]
[1761574499971,2.2480254,1148.5,1144.9,0.55950102]
[1761574500273,2.2480254,1148.5,1145.0,0.55950102]
[1761574500571,2.2480254,1148.5,1144.5,0.64880039]
[1761574500872,2.2480254,1148.5,1144.6,0.55955969]
[1761574501070,2.2480254,1148.5,1144.7,0.55955969]
[1761574501271,2.2480254,1148.5,1144.8,0.55955969]
[1761574501472,2.2480254,1148.5,1144.9,0.55955969]
[1761574501670,2.2480254,1148.5,1144.5,0.64880039]
[1761574501671,2.2480254,1148.5,1145.0,0.55955969]
[1761574501874,2.0962383,1148.2,1144.5,0.64880039]
[1761574502074,2.0962383,1148.2,1144.6,0.55994535]
[1761574502273,2.0962383,1148.2,1144.7,0.55994535]
[1761574502475,2.0962383,1148.2,1144.8,0.55994535]
[1761574502673,2.0962383,1148.2,1144.9,0.55994535]
[1761574502971,2.0962383,1148.2,1145.0,0.55994535]
[1761574503172,2.0962383,1148.2,1145.1,0.5602009]
[1761574503376,0.1517871,1148.5,1144.5,0.64880039]
[1761574503572,0.1517871,1148.5,1144.6,0.56034316]
[1761574503773,0.1517871,1148.5,1144.7,0.56034316]
[1761574503976,0.1517871,1148.5,1144.8,0.56034316]
[1761574504175,0.1517871,1148.5,1144.9,0.56034316]
[1761574504375,2.2480254,1148.5,1145.0,0.56034316]
[1761574504577,2.2480254,1148.5,1142.7,2.23411401]
[1761574504578,2.2480254,1148.5,1145.1,0.56034316]
[1761574504774,2.2480254,1148.5,1144.6,0.64880039]
[1761574505076,2.0962383,1148.3,1144.7,0.56051172]
[1761574505275,2.0962383,1148.3,1144.8,0.56051172]
[1761574505474,2.0962383,1148.3,1144.9,0.56051172]
[1761574505674,2.0962383,1148.3,1145.0,0.56051172]
[1761574505876,2.0962383,1148.3,1145.1,0.56051172]
[1761574506075,2.0962383,1148.2,1144.6,0.64880039]
[1761574506375,2.0962383,1148.2,1144.7,1.20950112]
[1761574506579,2.0962383,1148.0,1144.8,1.20950112]
[1761574506879,2.0962383,1148.0,1144.9,0.56070073]
[1761574507079,2.0962383,1147.7,1145.0,0.56070073]
[1761574507280,2.0962383,1147.7,1145.0,1.20950112]
[1761574507577,2.0962383,1148.0,1145.1,0.56070073]
[1761574507780,2.0962383,1148.0,1145.2,0.56070073]
[1761574507975,2.9234289,1148.1,1145.3,0.56070073]
[1761574508177,2.0962383,1148.3,1144.8,0.64880039]
[1761574508381,2.0962383,1148.3,1144.9,0.5611244]
[1761574508676,2.0962383,1147.5,1145.0,0.5611244]
[1761574508877,2.0962383,1147.5,1144.7,0.64880039]
[1761574509080,2.0962383,1147.4,1144.8,0.56120212]
[1761574509280,2.0962383,1147.4,1144.9,0.56120212]
[1761574509477,2.0962383,1147.4,1144.4,0.64880039]
[1761574509677,2.0962383,1147.4,1144.5,0.56149026]
[1761574509879,2.0962383,1147.4,1144.6,0.56149026]
[1761574510079,2.0962383,1147.4,1144.7,0.56149026]
[1761574510281,2.0962383,1147.0,1144.3,0.64880039]
[1761574510480,2.0962383,1147.0,1144.4,0.56162753]
[1761574510683,2.0962383,1147.1,1144.5,0.56162753]
[1761574510978,2.0962383,1147.1,1144.3,0.64880039]
[1761574510979,2.0962383,1147.1,1144.6,0.56162753]
[1761574511178,2.9234289,1147.4,1144.7,0.56162753]
[1761574511378,2.0962383,1147.9,1144.2,0.64880039]
[1761574511578,2.0962383,1147.9,1144.3,0.56025029]
[1761574511780,2.0962383,1147.9,1144.4,0.56025029]
[1761574512079,2.0962383,1147.9,1144.0,0.64880039]
[1761574512280,2.0962383,1146.7,1144.1,0.56036614]
[1761574512480,2.0962383,1146.7,1144.2,0.56036614]
[1761574512678,2.0962383,1146.7,1143.9,0.64880039]
[1761574512679,2.0962383,1146.7,1144.3,0.56036614]
[1761574512882,2.0962383,1146.7,1143.9,0.64880039]
[1761574513083,2.0962383,1146.7,1144.0,0.56013636]
[1761574513280,2.0962383,1146.7,1144.1,0.56013636]
[1761574513582,2.0962383,1146.7,1144.2,0.56013636]
[1761574513783,2.0962383,1146.8,1144.3,0.56013636]
[1761574513980,2.0962383,1146.8,1144.4,0.56013636]
[1761574514180,2.0962383,1146.8,1144.5,0.56013636]
[1761574514383,2.0962383,1147.6,1144.1,0.64880039]
[1761574514585,2.0962383,1147.6,1144.2,0.55809867]
[1761574514881,2.0962383,1147.1,1144.3,0.55809867]
[1761574515080,2.0962383,1147.1,1144.4,0.55809867]
[1761574515283,2.0962383,1147.3,1144.5,0.55809867]
[1761574515482,2.0962383,1147.3,1144.6,0.55790004]
[1761574515682,2.0962383,1147.3,1144.1,0.64880039]
[1761574515880,2.0962383,1147.5,1144.2,0.55792684]
[1761574516079,2.0962383,1147.5,1144.3,0.55792684]
[1761574516281,2.0962383,1147.5,1144.4,0.55792684]
[1761574516482,2.0962383,1147.5,1144.5,0.55792684]
[1761574516685,2.0962383,1147.5,1144.6,0.55778253]
[1761574516979,2.0962383,1147.7,1144.1,0.64880039]
[1761574517281,2.0962383,1147.7,1144.2,0.55779778]
[1761574517485,2.0962383,1147.0,1144.3,0.55779778]
[1761574517784,2.0962383,1147.0,1144.4,0.55779778]
[1761574517984,2.0962383,1147.0,1144.1,0.64880039]
[1761574518186,2.0962383,1147.0,1144.2,0.55768309]
[1761574518481,2.0962383,1147.0,1144.3,0.55768309]
[1761574518784,2.0962383,1147.0,1144.4,0.55768309]
[1761574519085,2.0962383,1147.2,1144.5,0.55768309]
[1761574519284,2.0962383,1147.2,1144.1,0.64880039]
[1761574519481,2.0962383,1147.3,1144.2,0.55743767]
[1761574519685,2.0962383,1147.3,1144.3,0.55743767]
[1761574519884,2.0962383,1147.3,1143.9,0.64880039]
[1761574520085,2.0962383,1147.4,1144.0,0.55749333]
[1761574520285,2.0962383,1147.4,1144.1,0.55749333]
[1761574520486,2.0962383,1147.3,1144.2,0.55749333]
[1761574520687,2.0962383,1147.3,1143.9,0.64880039]
[1761574520987,2.0962383,1146.8,1144.0,0.5573177]
[1761574521187,2.0962383,1146.8,1143.6,0.832926]
[1761574521188,2.0962383,1146.8,1143.6,0.64880039]
[1761574521487,1.2350487,1146.3,1143.7,0.55603421]
[1761574521686,1.2350487,1146.4,1143.8,0.55603421]
[1761574521887,1.2350487,1146.4,1143.9,0.55603421]
[1761574522085,1.2350487,1146.4,1144.0,0.55603421]
[1761574522283,1.2350487,1146.4,1143.5,0.64880039]
[1761574522483,1.2350487,1146.4,1143.6,0.55537109]
[1761574522687,1.2350487,1146.3,1143.7,0.55537109]
[1761574522983,1.2350487,1146.3,1143.8,0.555494]
[1761574523185,1.2350487,1146.3,1143.2,0.64880039]
[1761574523388,1.2350487,1146.4,1143.3,0.55551147]
[1761574523588,1.2350487,1146.4,1143.4,0.55551147]
[1761574523887,1.2350487,1146.4,1143.5,0.55551147]
[1761574524088,1.2350487,1146.4,1143.6,0.55551147]
[1761574524288,1.2350487,1146.5,1143.7,0.55551147]
[1761574524486,1.2350487,1146.7,1143.8,0.55551147]
[1761574524690,1.2350487,1146.7,1143.9,0.55551147]
[1761574524991,1.2350487,1146.7,1143.3,0.64880039]
[1761574525287,1.2350487,1146.7,1143.4,0.5547069]
[1761574525491,1.2350487,1146.7,1143.5,0.5547069]
[1761574525785,1.2350487,1146.4,1143.6,0.5547069]
[1761574525987,1.2350487,1146.6,1143.7,0.5547069]
[1761574526290,1.2350487,1146.5,1143.8,0.5547069]
[1761574526488,1.2350487,1146.4,1143.9,0.5547069]
[1761574526691,1.2350487,1146.4,1144.0,0.5547069]
[1761574526986,1.2350487,1146.4,1144.1,0.5547069]
[1761574527187,1.2350487,1146.4,1143.6,0.64880039]
[1761574527393,1.2350487,1146.3,1143.7,1.20316848]
[1761574527587,1.2350487,1146.3,1143.8,0.55436809]
[1761574527791,1.2350487,1146.3,1143.9,0.55436809]
[1761574527987,1.2350487,1146.3,1144.0,0.55436809]
[1761574528193,1.2350487,1146.3,1143.7,0.64880039]
[1761574528395,1.2350487,1146.3,1143.8,0.55428925]
[1761574528592,1.2350487,1146.3,1143.9,0.55428925]
[1761574528789,1.2350487,1146.3,1144.0,0.55428925]
[1761574528990,1.2350487,1146.3,1143.7,0.64880039]
[1761574529191,1.2350487,1146.4,1143.8,0.55422053]
[1761574529492,1.2350487,1146.4,1143.9,0.55422053]
[1761574529690,1.2350487,1146.4,1144.0,0.55422053]
[1761574529892,1.2350487,1146.4,1143.7,0.64880039]
[1761574530093,1.2350487,1146.5,1143.8,0.55424573]
[1761574530395,1.2350487,1146.4,1143.9,0.55424573]
[1761574530593,1.2350487,1146.3,1143.4,0.64880039]
[1761574530798,1.2350487,1146.4,1143.5,0.55414386]
[1761574530998,1.2350487,1146.4,1143.6,0.55414386]
[1761574531198,1.2350487,1146.4,1143.7,0.55414386]
[1761574531396,1.2350487,1146.4,1143.8,0.55414386]
[1761574531596,1.2350487,1146.4,1143.3,0.64880039]
[1761574531898,1.2350487,1146.4,1143.4,0.55399999]
[1761574532094,1.2350487,1146.3,1143.5,0.55399999]
[1761574532294,1.2350487,1146.3,1143.6,0.55399999]
[1761574532498,1.2350487,1146.3,1143.7,0.55399999]
[1761574532697,1.2350487,1146.3,1143.2,0.64880039]
[1761574532900,1.2350487,1146.3,1143.3,0.55247321]
[1761574533096,1.2350487,1146.3,1143.4,0.55247321]
[1761574533299,1.2350487,1146.2,1143.5,0.55247321]
[1761574533599,1.2350487,1146.3,1143.6,0.55247321]
[1761574533800,1.2350487,1146.3,1143.7,0.55247321]
[1761574534001,1.2350487,1146.5,1143.8,0.55247321]
[1761574534299,1.2350487,1146.5,1143.3,0.64880039]
[1761574534498,1.2350487,1146.5,1143.4,0.55221177]
[1761574534698,1.2350487,1146.5,1143.5,0.55221177]
[1761574534902,1.2350487,1146.4,1143.6,0.55221177]
[1761574535098,1.2350487,1146.5,1143.7,0.55221177]
[1761574535303,1.2350487,1146.5,1143.8,0.55221177]
[1761574535503,1.2350487,1146.5,1143.3,0.64880039]
[1761574535698,1.2350487,1146.5,1143.4,0.55210475]
[1761574535899,1.2350487,1146.5,1143.5,0.55210475]
[1761574536101,1.2350487,1146.5,1143.6,0.55210475]
[1761574536399,1.2350487,1146.3,1143.7,0.55210475]
[1761574536598,1.2350487,1146.4,1143.8,0.55210475]
[1761574536803,1.2350487,1146.4,1143.9,0.55210475]
[1761574537000,1.2350487,1146.4,1144.0,0.55210475]
[1761574537204,1.2350487,1146.3,1143.4,0.64880039]
[1761574537405,1.2350487,1146.3,1143.5,0.55212232]
[1761574537605,1.2350487,1146.3,1143.6,0.55212232]
[1761574537806,1.2350487,1146.3,1143.7,0.55212232]
[1761574538102,1.2350487,1146.3,1143.8,0.55212232]
[1761574538303,1.2350487,1146.3,1143.4,0.64880039]
[1761574538501,1.2350487,1146.3,1143.5,0.55216346]
[1761574538707,1.2350487,1146.3,1143.6,0.55216346]
[1761574538907,2.0962383,1147.1,1143.7,0.55216346]
[1761574538908,1.2350487,1146.9,1143.7,0.55216346]
[1761574539108,1.2350487,1147.0,1143.8,0.55216346]
[1761574539308,1.2350487,1146.9,1143.0,0.64880039]
[1761574539509,1.2350487,1147.0,1143.1,1.20098728]
[1761574539704,1.2350487,1147.0,1143.2,0.55218689]
[1761574539906,1.2350487,1147.0,1143.3,0.55218689]
[1761574540105,1.2350487,1147.0,1143.1,0.64880039]
[1761574540106,1.2350487,1146.9,1143.4,0.55218689]
[1761574540306,1.2350487,1146.7,1143.5,0.55218689]
[1761574540610,1.2350487,1146.6,1143.6,0.55218689]
[1761574540911,1.2350487,1146.4,1143.1,0.64880039]
[1761574541112,1.2350487,1146.3,1143.2,0.55219713]
[1761574541409,1.2350487,1146.1,1143.3,0.55219713]
[1761574541706,1.2350487,1146.0,1143.3,0.55219713]
[1761574541910,1.2350487,1145.8,1143.3,0.55219713]
[1761574542107,1.2350487,1145.8,1143.4,0.55219713]
[1761574542308,1.2350487,1145.8,1143.0,0.64880039]
[1761574542505,1.2350487,1145.8,1143.1,0.55061723]
[1761574542707,1.2350487,1145.8,1142.8,0.64880039]
[1761574542909,1.2350487,1145.6,1142.9,0.55068289]
[1761574543108,1.2350487,1145.6,1143.0,0.55068289]
[1761574543312,1.2350487,1145.6,1143.1,0.55068289]
[1761574543611,1.2350487,1145.6,1142.8,0.64880039]
[1761574543812,1.2350487,1145.6,1142.9,0.55053312]
[1761574544012,1.2350487,1145.7,1143.0,0.55053312]
[1761574544211,1.2350487,1145.7,1142.6,0.64880039]
[1761574544412,1.2350487,1145.7,1142.7,0.55061928]
[1761574544712,1.2350487,1145.8,1142.8,0.55061928]
[1761574544907,1.2350487,1145.8,1142.9,0.55061928]
[1761574545108,1.2350487,1146.2,1143.0,0.55061928]
[1761574545312,1.2350487,1146.3,1143.1,0.55061928]
[1761574545510,1.2350487,1146.3,1142.5,0.64880039]
[1761574545713,1.2350487,1146.3,1142.6,0.55005542]
[1761574545911,1.2350487,1146.3,1142.7,0.55005542]
[1761574546112,1.2350487,1146.3,1142.8,0.55005542]
[1761574546313,1.2350487,1146.3,1142.9,0.55005542]
[1761574546510,1.2350487,1146.4,1143.0,0.55005542]
[1761574546716,1.2350487,1146.4,1143.1,0.55005542]
[1761574547014,1.2350487,1146.4,1142.5,0.64880039]
[1761574547214,1.2350487,1146.4,1142.6,0.54979993]
[1761574547510,1.2350487,1146.4,1142.7,0.54979993]
[1761574547710,1.2350487,1146.5,1142.8,0.54979993]
[1761574547915,1.2350487,1146.5,1142.9,0.54979993]
[1761574548112,1.2350487,1146.5,1143.0,0.54979993]
[1761574548316,1.2350487,1146.5,1143.1,0.54979993]
[1761574548512,1.2350487,1146.3,1142.5,0.64880039]
[1761574548713,1.2350487,1145.6,1142.6,0.54939484]
[1761574548918,1.2350487,1145.6,1142.7,0.54939484]
[1761574549115,1.2350487,1145.6,1142.8,0.54939484]
[1761574549314,1.2350487,1145.6,1142.4,0.64880039]
[1761574549518,1.2350487,1145.6,1142.5,0.54911873]
[1761574549719,1.2350487,1145.6,1142.6,0.54911873]
[1761574549919,1.2350487,1145.6,1142.7,0.54911873]
[1761574550117,1.2350487,1145.6,1142.8,0.54911873]
[1761574550315,1.2350487,1145.8,1142.4,0.64880039]
[1761574550516,1.2350487,1145.8,1142.5,0.5488414]
[1761574550721,1.2350487,1145.7,1142.6,0.5488414]
[1761574550924,1.2350487,1145.7,1142.7,0.5488414]
[1761574551221,1.2350487,1145.8,1142.8,0.5488414]
[1761574551426,1.2350487,1145.8,1142.4,0.64880039]
[1761574551620,1.2350487,1145.8,1142.5,0.54860874]
[1761574551823,1.2350487,1146.2,1142.6,0.54860874]
[1761574552021,1.2350487,1146.2,1142.7,0.54860874]
[1761574552222,1.2350487,1146.2,1142.8,0.54860874]
[1761574552423,1.2350487,1146.2,1142.9,0.54860874]
[1761574552623,1.2350487,1146.2,1142.4,0.64880039]
[1761574552918,1.2350487,1146.2,1142.5,0.54841989]
[1761574553124,1.2350487,1146.2,1142.6,0.54841989]
[1761574553321,1.2350487,1146.2,1142.7,0.54841989]
[1761574553521,1.2350487,1146.0,1142.3,0.64880039]
[1761574553722,1.2350487,1146.0,1142.4,0.54832698]
[1761574554024,1.2350487,1146.1,1142.5,0.54832698]
[1761574554221,1.2350487,1146.1,1142.6,0.54832698]
[1761574554426,1.2350487,1146.1,1142.7,0.54832698]
[1761574554723,1.2350487,1146.1,1142.8,0.54832698]
[1761574554920,1.2350487,1146.1,1142.1,0.15211685]
[1761574555120,1.2350487,1146.1,1142.3,0.64392542]
[1761574555322,1.2350487,1146.1,1142.4,0.54794726]
[1761574555626,1.2350487,1146.0,1142.4,0.54794726]
[1761574556224,1.2350487,1146.0,1142.5,0.54794726]
[1761574556428,1.2350487,1146.0,1142.3,0.64392542]
[1761574556429,1.2350487,1146.0,1142.6,0.54794726]
[1761574556725,1.2350487,1146.0,1142.7,0.54794726]
[1761574556923,1.2350487,1146.0,1142.3,0.64392542]
[1761574557124,1.2350487,1146.0,1142.4,0.54777836]
[1761574557326,1.2350487,1146.0,1142.3,0.64392542]
[1761574557327,1.2350487,1146.1,1142.5,0.54777836]
[1761574557526,1.2350487,1146.2,1142.6,0.54777836]
[1761574557729,1.2350487,1146.2,1142.7,0.54777836]
[1761574558027,1.2350487,1146.2,1142.8,0.54777836]
[1761574558327,1.2350487,1146.2,1142.3,0.64392542]
[1761574558531,1.2350487,1146.2,1142.4,0.54773093]
[1761574558728,1.2350487,1146.2,1142.5,0.54773093]
[1761574558929,1.2350487,1146.2,1142.6,0.54773093]
[1761574559129,1.2350487,1146.2,1142.7,0.54773093]
[1761574559326,1.2350487,1146.2,1142.8,0.54773093]
[1761574559627,1.2350487,1146.2,1142.3,0.64392542]
[1761574559830,1.2350487,1146.2,1142.4,0.54777287]
[1761574560028,1.2350487,1146.2,1142.5,0.54777287]
[1761574560226,1.2350487,1146.2,1142.6,0.54777287]
[1761574560427,1.2350487,1146.2,1142.7,0.54777287]
[1761574560629,1.2350487,1146.2,1142.8,0.54777287]
[1761574560832,1.2350487,1146.2,1142.3,0.64392542]
[1761574561032,1.2350487,1146.2,1142.4,0.54778567]
[1761574561333,1.2350487,1146.2,1142.5,0.54778567]
[1761574561633,1.2350487,1146.2,1142.6,0.54778567]
[1761574561834,1.2350487,1146.2,1142.7,0.54778567]
[1761574562029,1.2350487,1146.2,1142.8,0.54778567]
[1761574562334,1.2350487,1146.1,1142.3,0.64392542]
[1761574562531,2.0962383,1147.3,1142.4,0.54792248]
[1761574562532,1.2350487,1145.8,1142.4,0.54792248]
[1761574562735,1.2350487,1145.7,1142.5,0.54792248]
[1761574562935,3.331287,1146.6,1142.6,0.54792248]
[1761574563147,1.2350487,1146.3,1141.8,0.7960855]
[1761574563332,1.2350487,1146.3,1141.9,0.54799459]
[1761574563536,1.2350487,1146.3,1142.0,0.54799459]
[1761574563833,1.2350487,1146.3,1142.1,0.54799459]
[1761574564032,1.2350487,1146.3,1142.2,0.54799459]
[1761574564334,1.2350487,1146.3,1142.3,0.54799459]
[1761574564532,1.2350487,1146.3,1142.4,0.54799459]
[1761574564732,1.2350487,1145.6,1142.0,0.64392542]
[1761574564934,1.2350487,1145.6,1142.1,0.54807599]
[1761574565132,1.2350487,1145.6,1142.2,0.54807599]
[1761574565332,1.2350487,1145.5,1142.3,0.54807599]
[1761574565536,1.2350487,1145.5,1141.9,0.64392542]
[1761574565836,1.2350487,1145.6,1142.0,0.54812791]
[1761574566135,1.2350487,1145.6,1142.1,0.54812791]
[1761574566336,1.2350487,1145.6,1142.2,0.54812791]
[1761574566532,1.2350487,1145.6,1142.3,0.54812791]
[1761574566733,1.2350487,1145.6,1142.4,0.54812791]
[1761574566937,1.2350487,1145.5,1141.9,0.64392542]
[1761574567236,1.2350487,1145.5,1142.0,0.54824551]
[1761574567437,1.2350487,1145.5,1142.1,0.54824551]
[1761574567737,1.2350487,1145.5,1142.2,0.54824551]
[1761574567936,1.2350487,1145.5,1142.3,0.54824551]
[1761574568137,1.2350487,1145.5,1142.4,0.54824551]
[1761574568337,1.2350487,1145.5,1142.0,0.64392542]
[1761574568534,1.2350487,1145.4,1142.1,1.19270565]
[1761574568738,1.2350487,1145.6,1142.3,0.64392542]
[1761574569140,1.2350487,1145.5,1142.3,0.64392542]
[1761574569340,1.2350487,1145.6,1142.4,0.54878023]
[1761574569636,1.2350487,1145.5,1142.5,0.54878023]
[1761574569840,1.2350487,1145.5,1142.0,0.64392542]
[1761574570135,1.2350487,1145.5,1142.1,0.54903189]
[1761574570437,1.2350487,1145.7,1142.2,0.54903189]
[1761574570637,1.2350487,1145.7,1142.3,0.54903189]
[1761574570940,1.2350487,1145.7,1142.4,0.54903189]
[1761574571135,1.2350487,1145.7,1142.0,0.64392542]
[1761574571136,1.2350487,1145.7,1142.5,0.54903189]
[1761574571340,2.9234289,1147.4,1142.6,0.54903189]
[1761574571341,1.2350487,1145.8,1142.6,0.54903189]
[1761574571537,1.2350487,1145.8,1142.7,0.54903189]
[1761574571741,1.2350487,1145.8,1142.3,0.64392542]
[1761574571937,1.2350487,1146.0,1142.4,1.19315215]
[1761574572140,1.2350487,1146.0,1142.5,0.54922673]
[1761574572441,1.2350487,1146.0,1142.6,0.54922673]
[1761574572641,1.2350487,1146.0,1142.7,0.54922673]
[1761574572841,1.2350487,1146.0,1142.8,0.54922673]
[1761574573039,1.2350487,1146.0,1142.9,0.54922673]
[1761574573337,1.2350487,1145.9,1142.3,0.64392542]
[1761574573537,1.2350487,1145.9,1142.4,0.5494153]
[1761574573742,1.2350487,1145.6,1142.3,0.64392542]
[1761574574141,1.2350487,1145.6,1142.3,1.19334072]
[1761574574441,1.2350487,1145.5,1142.4,0.5494153]
[1761574574644,1.2350487,1145.6,1142.4,0.5494153]
[1761574574842,1.2350487,1145.6,1142.5,0.5494153]
[1761574575143,1.2350487,1145.6,1142.6,0.5494153]
[1761574575340,1.2350487,1145.5,1142.7,0.54977358]
[1761574575539,1.2350487,1145.5,1142.2,0.64608655]
[1761574575842,1.2350487,1145.6,1142.3,0.54976191]
[1761574576042,1.2350487,1145.6,1142.4,0.54976191]
[1761574576342,1.2350487,1145.5,1142.5,0.54976191]
[1761574576543,1.2350487,1145.5,1142.6,0.54976191]
[1761574576741,1.2350487,1145.5,1142.7,0.54976191]
[1761574576940,1.2350487,1145.5,1142.2,0.64608655]
[1761574577144,1.2350487,1145.5,1142.3,0.54997743]
[1761574577344,1.2350487,1145.5,1142.4,0.54997743]
[1761574577644,1.2350487,1145.5,1142.5,0.54997743]
[1761574577940,1.2350487,1145.5,1142.6,0.54997743]
[1761574578143,1.2350487,1145.5,1142.7,0.54997743]
[1761574578440,2.0962383,1146.5,1142.3,0.64608655]
[1761574578441,1.2350487,1145.4,1142.3,0.64608655]
[1761574578646,1.2350487,1145.4,1142.4,0.55040642]
[1761574578844,1.2350487,1145.4,1142.5,0.55040642]
[1761574579043,1.2350487,1145.4,1142.6,0.55040642]
[1761574579343,1.2350487,1145.4,1142.7,0.55040642]
[1761574579541,1.2350487,1145.9,1142.8,0.5506558]
[1761574579745,1.2350487,1146.0,1142.9,0.5506558]
[1761574579944,1.2350487,1146.0,1143.0,0.5506558]
[1761574580144,1.2350487,1146.0,1142.3,0.64608655]
[1761574580344,1.2350487,1146.0,1142.4,0.55062293]
[1761574580545,1.2350487,1145.9,1142.5,0.55062293]
[1761574580745,1.2350487,1145.9,1142.6,0.55062293]
[1761574581040,1.2350487,1145.9,1142.7,0.55062293]
[1761574581240,1.2350487,1145.8,1142.8,0.55062293]
[1761574581444,1.2350487,1145.8,1142.5,0.64608655]
[1761574581445,1.2350487,1145.8,1142.9,0.55062293]
[1761574581642,1.2350487,1145.9,1143.0,0.55062293]
[1761574581846,1.2350487,1145.9,1142.6,0.64608655]
[1761574581847,1.2350487,1145.9,1143.1,0.55062293]
[1761574582047,1.2350487,1145.9,1142.6,0.64608655]
[1761574582247,1.2350487,1145.8,1142.7,0.55088717]
[1761574582543,1.2350487,1145.8,1142.8,0.55088717]
[1761574582745,1.2350487,1145.8,1142.9,0.55088717]
[1761574582944,1.2350487,1145.8,1143.0,0.55088717]
[1761574583143,1.2350487,1145.8,1143.1,0.55088717]
[1761574583443,1.2350487,1146.1,1143.2,0.55088717]
[1761574583743,1.2350487,1146.1,1142.4,0.832926]
[1761574583744,1.2350487,1146.1,1143.3,0.55088717]
[1761574584044,1.2350487,1146.1,1142.8,0.64608655]
[1761574584247,1.2350487,1146.2,1142.9,0.55175791]
[1761574584447,1.2350487,1146.1,1143.0,0.55175791]
[1761574584747,1.2350487,1145.9,1143.1,0.55175791]
[1761574584947,1.2350487,1145.9,1143.2,0.55175791]
[1761574585247,1.2350487,1145.9,1142.6,0.64608655]
[1761574585448,1.2350487,1145.6,1142.7,1.19808931]
[1761574585648,1.2350487,1145.6,1142.8,0.55200276]
[1761574585848,1.2350487,1145.6,1142.9,0.55200276]
[1761574586145,1.2350487,1145.7,1143.0,0.55200276]
[1761574586344,1.2350487,1145.6,1143.1,0.55200276]
[1761574586547,1.2350487,1145.6,1143.2,0.55200276]
[1761574586748,1.2350487,1145.6,1143.3,0.55200276]
[1761574586947,1.2350487,1145.6,1142.9,0.64608655]
[1761574587144,1.2350487,1145.9,1143.0,0.5521773]
[1761574587344,1.2350487,1145.8,1143.1,0.5521773]
[1761574587548,1.2350487,1145.8,1143.2,0.5521773]
[1761574587843,1.2350487,1145.8,1143.3,0.5521773]
[1761574588045,1.2350487,1145.8,1142.8,0.64608655]
[1761574588347,1.2350487,1145.8,1142.9,0.55240661]
[1761574588544,1.2350487,1146.0,1143.0,0.55240661]
[1761574588847,1.2350487,1146.0,1143.1,0.55240661]
[1761574589044,1.2350487,1146.0,1143.2,0.55240661]
[1761574589249,1.2350487,1146.1,1143.3,0.55240661]
[1761574589447,1.2350487,1145.8,1143.4,0.55240661]
[1761574589745,1.2350487,1145.9,1143.5,0.55240661]
[1761574589950,1.2350487,1145.9,1143.6,0.55240661]
[1761574590150,1.2350487,1145.9,1143.7,0.55240661]
[1761574590447,1.2350487,1145.9,1143.3,0.64608655]
[1761574590647,1.2350487,1146.0,1143.5,0.64608655]
[1761574590846,1.2350487,1146.1,1143.6,1.1988799]
[1761574591048,1.2350487,1146.0,1143.7,0.55279335]
[1761574591249,1.2350487,1146.0,1143.8,0.55279335]
[1761574591547,1.2350487,1146.0,1143.4,0.64608655]
[1761574591746,1.2350487,1146.0,1143.5,0.55282709]
[1761574591944,1.2350487,1146.0,1143.6,0.55282709]
[1761574592146,1.2350487,1146.0,1143.7,0.55282709]
[1761574592349,1.2350487,1146.0,1143.4,0.64608655]
[1761574592550,1.2350487,1146.0,1143.5,0.55281276]
[1761574592746,1.2350487,1146.0,1143.6,0.55281276]
[1761574592950,1.2350487,1146.0,1143.7,0.55281276]
[1761574593147,1.2350487,1145.9,1143.3,0.64608655]
[1761574593351,1.2350487,1146.0,1143.4,1.19889571]
[1761574593546,1.2350487,1146.0,1143.5,0.55280916]
[1761574593750,1.2350487,1145.9,1143.6,0.55280916]
[1761574593951,1.2350487,1145.9,1143.7,0.55280916]
[1761574594252,1.2350487,1145.9,1143.3,0.64608655]
[1761574594449,1.2350487,1146.0,1143.4,0.55281221]
[1761574594648,1.2350487,1145.9,1143.5,0.55281221]
[1761574594949,1.2350487,1145.9,1143.6,0.55281221]